bitfinex/quotes_ETHUSD_20250430
["timestamp","ask_amount","ask_price","bid_price","bid_amount"]
[1746014977552,6.26535279,1813.3,1813.2,4.562]
[1746014978076,6.5745121,1813.3,1813.2,4.562]
[1746014978576,5.5151114,1813.2,1813.1,0.8184]
[1746014978779,5.7657388,1813.2,1813.1,5.3804]
[1746014979787,0.2506274,1813.2,1813.1,5.3804]
[1746014980184,0.2506274,1813.2,1813.1,5.91844]
[1746014980887,5.51485824,1813.3,1813.2,0.8026]
[1746014981237,5.76379295,1813.3,1813.2,0.8026]
[1746014982848,5.76379295,1813.3,1813.1,5.15004]
[1746014983078,5.74989051,1813.2,1813.1,4.612]
[1746014990625,6.58319051,1813.2,1813.1,0.05]
[1746014990808,12.47919023,1813.2,1813.1,4.611]
[1746014991126,12.99371031,1813.2,1813.1,4.611]
[1746014991431,6.57313304,1813.2,1813.1,5.398]
[1746014992089,6.26441059,1813.2,1813.1,5.398]
[1746014992284,6.26441059,1813.2,1813.1,4.611]
[1746014992515,5.74989051,1813.2,1813.1,5.3796]
[1746014996004,6.26488684,1813.2,1813.1,5.3796]
[1746014999957,6.57415854,1813.2,1813.1,5.3796]
[1746015000823,8.26035338,1813.2,1813.1,4.611]
[1746015001063,8.0329397,1813.2,1813.1,5.4306]
[1746015001353,6.57415854,1813.2,1813.1,5.4306]
[1746015001552,1.05904714,1813.2,1813.1,5.4306]
[1746015001943,0.74977544,1813.2,1813.1,5.4306]
[1746015002146,0.23477911,1813.2,1813.1,5.4306]
[1746015005854,0.23881119,1813.2,1813.1,5.4306]
[1746015006758,0.25012623,1813.2,1813.1,5.4306]
[1746015006958,0.76659309,1813.2,1813.1,5.4306]
[1746015007460,0.25012623,1813.2,1813.1,5.4306]
[1746015007677,5.76523763,1813.2,1813.1,0.05]
[1746015007842,6.96891565,1813.2,1813.1,4.612]
[1746015008046,6.07511271,1813.2,1813.1,4.612]
[1746015008487,6.59153949,1813.2,1813.1,4.612]
[1746015014595,15.74153949,1813.2,1813.1,4.612]
[1746015014793,5.51663264,1812.7,1812.6,0.62590741]
[1746015015095,12.21471205,1812.7,1812.6,0.62590741]
[1746015015254,12.73113883,1812.7,1812.6,0.62590741]
[1746015015857,12.73113883,1812.7,1812.6,5.18690741]
[1746015016086,12.73113883,1812.7,1812.6,4.561]
[1746015016392,7.21450619,1812.7,1812.6,4.561]
[1746015016600,12.42126375,1812.7,1812.6,4.561]
[1746015019055,6.90463111,1812.7,1812.6,4.561]
[1746015019260,12.42126375,1812.7,1812.6,4.561]
[1746015019560,11.90483697,1812.7,1812.6,4.561]
[1746015019756,6.38820433,1812.7,1812.6,5.3879]
[1746015020770,0.23820433,1812.7,1812.6,5.3879]
[1746015020971,0.24201029,1812.7,1812.6,6.47841316]
[1746015021703,0.24820662,1812.7,1812.6,6.47841316]
[1746015021868,0.24820662,1812.7,1812.6,11.99535015]
[1746015022068,0.24820662,1812.7,1812.6,6.47841316]
[1746015022411,6.15,1813.0,1812.7,5.51663264]
[1746015022621,6.15,1813.0,1812.1,0.83032959]
[1746015022622,0.7876,1812.6,1812.1,0.05]
[1746015022765,5.51815472,1812.2,1812.1,0.05]
[1746015023112,5.75674839,1812.2,1812.1,0.05]
[1746015024506,5.75674839,1812.2,1812.1,4.612]
[1746015026719,7.17259108,1812.2,1812.1,0.05]
[1746015026870,11.00538082,1812.2,1812.1,0.05]
[1746015027070,11.8281701,1812.2,1812.1,0.05]
[1746015027365,11.75918036,1812.2,1812.1,0.05]
[1746015027969,11.45062584,1812.2,1812.1,0.05]
[1746015028712,10.93639108,1812.2,1812.1,0.05]
[1746015029810,17.08639108,1812.2,1812.1,1e-08]
[1746015030598,17.90757721,1812.2,1812.1,1e-08]
[1746015033288,17.90757721,1812.2,1812.1,0.27154167]
[1746015033979,17.08639108,1812.2,1812.1,0.27154167]
[1746015038842,17.59948062,1812.2,1812.1,0.27154167]
[1746015039633,17.59948062,1812.2,1812.1,1e-08]
[1746015039835,17.59948062,1812.2,1812.1,0.24891318]
[1746015040013,8.51845924,1812.1,1812.0,4.564]
[1746015040203,8.75571082,1812.1,1812.0,4.564]
[1746015040832,8.75571082,1812.1,1812.0,4.81291318]
[1746015041046,5.75571082,1812.1,1812.0,4.81291318]
[1746015042347,5.75571082,1812.1,1812.0,0.24891318]
[1746015042551,5.51978934,1811.7,1811.4,4.622]
[1746015042712,0.24018388,1811.6,1811.5,0.8261]
[1746015042911,0.243247,1811.6,1811.5,0.8261]
[1746015043321,5.76295916,1811.7,1811.5,0.8261]
[1746015043523,0.243247,1811.6,1811.5,0.8261]
[1746015046622,0.243247,1811.6,1811.5,6.94639345]
[1746015046844,0.24542319,1811.6,1811.5,1.4261064]
[1746015047148,0.24542319,1811.7,1811.5,1.4261064]
[1746015047743,0.24542319,1811.7,1811.5,1.37091]
[1746015047943,0.24542319,1811.7,1811.5,1.42610284]
[1746015048254,0.24542319,1811.7,1811.5,6.94627922]
[1746015048764,0.24902192,1811.6,1811.5,6.94627922]
[1746015048959,11.66926807,1811.9,1811.6,5.51995643]
[1746015049112,6.15,1811.9,1811.7,0.8155]
[1746015049319,0.24902192,1811.8,1811.7,0.8155]
[1746015049547,0.24902192,1811.8,1811.7,5.4375]
[1746015049721,0.24902192,1811.8,1811.7,6.53322633]
[1746015050138,0.24902192,1811.8,1811.7,6.7159723]
[1746015051647,0.24902192,1811.8,1811.7,5.62024597]
[1746015051836,5.76839491,1811.8,1811.7,5.62024597]
[1746015052948,6.28476347,1811.8,1811.7,5.62024597]
[1746015053248,6.59458291,1811.8,1811.7,5.62024597]
[1746015054739,1.07520992,1811.8,1811.7,5.62024597]
[1746015056627,6.59458291,1811.8,1811.7,5.62024597]
[1746015057249,1.07520992,1811.8,1811.7,5.62024597]
[1746015061444,6.59458291,1811.8,1811.7,5.62024597]
[1746015061773,1.07520992,1811.8,1811.7,5.62024597]
[1746015061973,6.59458291,1811.8,1811.7,5.62024597]
[1746015062174,1.07520992,1811.8,1811.7,5.62024597]
[1746015062873,6.59458291,1811.8,1811.7,5.62024597]
[1746015063069,1.07520992,1811.8,1811.7,5.62024597]
[1746015063882,6.59458291,1811.8,1811.7,5.62024597]
[1746015064041,1.07520992,1811.8,1811.7,5.62024597]
[1746015064244,6.59458291,1811.8,1811.7,5.62024597]
[1746015064542,6.59458291,1811.8,1811.7,4.80474597]
[1746015068858,6.59458291,1811.8,1811.7,0.18274597]
[1746015069059,11.95596595,1811.8,1811.5,4.622]
[1746015069289,0.76143307,1811.7,1811.6,0.18302897]
[1746015069802,1.07125251,1811.7,1811.6,0.18302897]
[1746015070178,1.07125251,1811.7,1811.6,6.4951113]
[1746015070363,1.07125251,1811.7,1811.6,0.97512897]
[1746015070559,0.76143307,1811.7,1811.6,2.0868518]
[1746015072999,1.07174526,1811.7,1811.6,2.0868518]
[1746015074501,1.07174526,1811.7,1811.6,6.7278518]
[1746015075007,1.62174526,1811.7,1811.1,1e-08]
[1746015075298,1.62174526,1811.7,1810.6,1e-08]
[1746015075299,9.28212601,1810.7,1810.6,1e-08]
[1746015075484,12.75231926,1810.7,1810.6,1e-08]
[1746015075686,13.19963317,1810.7,1810.6,1e-08]
[1746015075890,11.82375052,1810.7,1810.6,1e-08]
[1746015076089,10.34328404,1810.7,1810.6,1e-08]
[1746015076472,10.85898566,1810.7,1810.6,1e-08]
[1746015078105,1.57685965,1810.7,1810.6,1e-08]
[1746015078506,1.06115803,1810.7,1810.6,1e-08]
[1746015079509,1.06115803,1810.7,1810.5,4.889]
[1746015079707,0.2447519,1810.6,1810.5,5.45316]
[1746015080111,0.55506409,1810.6,1810.5,10.97649609]
[1746015080308,1.07143265,1810.6,1810.5,10.97649609]
[1746015080610,0.55506409,1810.6,1810.5,10.97649609]
[1746015081105,0.2447519,1810.6,1810.5,10.97649609]
[1746015081306,0.23943629,1810.6,1810.5,10.97649609]
[1746015081471,5.52195515,1811.0,1810.6,5.52287765]
[1746015081676,0.51322929,1810.9,1810.6,7.17281502]
[1746015081975,1.06533708,1810.8,1810.6,7.17281502]
[1746015082175,0.24416968,1810.7,1810.6,7.17281502]
[1746015082576,0.55210779,1810.7,1810.6,7.17281502]
[1746015082800,1.06528557,1810.7,1810.6,7.30165292]
[1746015083013,1.06528557,1810.7,1810.6,1.77877527]
[1746015083211,1.06528557,1810.7,1810.6,7.3018063]
[1746015083722,1.06528557,1810.7,1810.6,0.1288379]
[1746015083930,0.55210779,1810.7,1810.6,0.1288379]
[1746015084824,0.55210779,1810.7,1810.6,5.65186893]
[1746015085430,0.24416968,1810.7,1810.6,5.65186893]
[1746015085625,0.2434102,1810.8,1810.6,5.65186893]
[1746015085799,0.23657084,1810.8,1810.6,0.1288379]
[1746015086694,0.30781256,1810.7,1810.6,5.6518375]
[1746015086897,0.55155981,1810.7,1810.6,7.31464976]
[1746015087634,0.24374725,1810.7,1810.6,7.31468119]
[1746015088001,0.25107069,1810.7,1810.6,7.31468119]
[1746015088313,0.25107069,1810.7,1810.6,1.79165016]
[1746015088492,0.55890833,1810.7,1810.6,1.79165016]
[1746015088696,0.8209405,1810.7,1810.6,1.79165016]
[1746015088954,1.05494539,1810.7,1810.6,1.79165016]
[1746015089112,0.54184253,1810.7,1810.6,7.31468119]
[1746015089594,0.23400489,1810.7,1810.6,7.31468119]
[1746015090431,0.24715615,1810.8,1810.6,7.31468119]
[1746015090592,0.24715615,1810.8,1810.6,5.65186893]
[1746015092831,0.30800361,1810.7,1810.6,5.65186893]
[1746015093002,0.546989,1810.7,1810.6,5.65186893]
[1746015093619,1.06043237,1810.7,1810.6,5.65186893]
[1746015094022,0.546989,1810.7,1810.6,5.65186893]
[1746015094299,0.546989,1810.7,1810.6,9.07679191]
[1746015094523,0.23898539,1810.7,1810.6,9.07679191]
[1746015094997,0.23898539,1810.7,1810.6,9.62679191]
[1746015095218,0.23898539,1810.7,1810.6,10.39529191]
[1746015095419,5.52138782,1811.2,1810.8,11.04437688]
[1746015095632,7.00822107,1811.2,1810.9,4.891]
[1746015095833,0.24518359,1811.1,1810.9,5.01609254]
[1746015096023,0.51366582,1811.0,1810.9,5.01609254]
[1746015096221,0.75884941,1811.0,1810.9,5.01609254]
[1746015096404,1.06704902,1811.0,1810.9,5.01609254]
[1746015096599,1.06704902,1811.0,1810.9,12.36483671]
[1746015097448,0.24518359,1811.0,1810.9,12.36483671]
[1746015097615,5.52074011,1811.4,1811.0,5.52159321]
[1746015097813,0.24002349,1811.3,1811.0,11.04324176]
[1746015098005,0.51390766,1811.2,1811.1,0.12325591]
[1746015098206,0.75393115,1811.2,1811.1,0.12325591]
[1746015098726,0.75393115,1811.2,1811.1,5.64476217]
[1746015098907,1.06234968,1811.2,1811.1,5.64476217]
[1746015100307,1.06234968,1811.2,1811.1,0.12325591]
[1746015100546,1.06234968,1811.2,1811.1,5.64476217]
[1746015101651,1.88134968,1811.2,1811.1,0.12325591]
[1746015102020,1.88134968,1811.2,1810.9,10.41298201]
[1746015102220,0.24825644,1811.1,1810.9,13.90440551]
[1746015102659,0.24825644,1811.1,1811.0,5.52181115]
[1746015103277,0.75124671,1811.1,1811.0,5.52181115]
[1746015103646,1.06030983,1811.1,1811.0,5.52181115]
[1746015110372,1.06030983,1811.1,1811.0,6.29341115]
[1746015110603,1.06030983,1811.1,1811.0,8.31319282]
[1746015115288,1.06030983,1811.1,1811.0,8.86319282]
[1746015115796,1.06030983,1811.1,1811.0,8.98136368]
[1746015120337,1.06030983,1811.1,1811.0,8.99451281]
[1746015120733,1.06030983,1811.1,1811.0,8.43136368]
[1746015124137,7.40061609,1811.1,1811.0,0.11817086]
[1746015124323,9.08681093,1811.1,1811.0,4.839]
[1746015124530,9.08681093,1811.1,1811.0,4.94665392]
[1746015124911,9.60369277,1811.1,1811.0,4.94665392]
[1746015126161,7.91749793,1811.1,1811.0,4.94665392]
[1746015126331,9.26138185,1811.1,1811.0,4.94665392]
[1746015126770,9.66635293,1811.1,1811.0,4.94665392]
[1746015126975,9.62535293,1811.1,1811.0,0.10765392]
[1746015127264,11.31154777,1811.1,1811.0,4.839]
[1746015127426,11.31154777,1811.1,1811.0,4.94884139]
[1746015129447,9.62535293,1811.1,1811.0,4.94884139]
[1746015134771,4.10384667,1811.1,1811.0,4.94884139]
[1746015135099,1.57719167,1811.1,1811.0,11.24835254]
[1746015135257,1.57719167,1811.1,1811.0,13.48454738]
[1746015135639,3.72222582,1811.6,1811.4,5.52036968]
[1746015135873,3.72222582,1811.6,1811.5,10.32728705]
[1746015136170,3.95943647,1811.6,1811.5,6.57981341]
[1746015136360,4.26889055,1811.6,1811.5,4.91888774]
[1746015137471,0.54666473,1811.6,1811.5,4.91888774]
[1746015137777,1.37436473,1811.6,1811.5,4.91888774]
[1746015138270,6.89434706,1811.6,1811.5,4.91888774]
[1746015139472,8.64954106,1811.6,1811.5,0.11188774]
[1746015139643,6.31429659,1811.3,1811.2,4.806]
[1746015139843,1.03205036,1811.3,1811.2,4.806]
[1746015140072,6.55294695,1811.3,1811.2,4.806]
[1746015140477,7.06857585,1811.3,1811.2,4.806]
[1746015140792,7.37802993,1811.3,1811.2,4.806]
[1746015144685,1.06373334,1811.3,1811.2,4.806]
[1746015144859,1.06373334,1811.3,1811.2,5.2866]
[1746015145184,0.54810444,1811.3,1811.2,5.2866]
[1746015146189,0.54810444,1811.3,1811.2,6.0705]
[1746015147158,0.54810444,1811.3,1811.2,5.2866]
[1746015148179,1.06371263,1811.3,1811.2,5.2866]
[1746015148377,1.06371263,1811.3,1810.9,5.52201681]
[1746015148378,7.36100922,1811.3,1810.9,5.52201681]
[1746015148577,5.76089395,1811.2,1811.0,4.806]
[1746015148778,0.75142863,1811.1,1811.0,4.806]
[1746015148978,1.06088271,1811.1,1811.0,4.806]
[1746015149623,1.06088271,1811.1,1811.0,5.83880168]
[1746015152618,1.89078271,1811.1,1811.0,1.03280168]
[1746015152823,7.41244405,1811.1,1811.0,4.806]
[1746015153124,7.92829379,1811.1,1811.0,4.806]
[1746015154524,1.57673245,1811.1,1811.0,4.806]
[1746015154721,1.57673245,1811.1,1811.0,5.91880996]
[1746015155126,6.58238897,1811.1,1811.0,5.91880996]
[1746015155348,6.58238897,1811.1,1811.0,4.806]
[1746015156538,1.06088271,1811.1,1811.0,4.806]
[1746015156923,6.58238897,1811.1,1811.0,4.806]
[1746015161048,7.09843903,1811.1,1811.0,4.806]
[1746015162854,10.09843903,1811.1,1811.0,4.806]
[1746015167654,10.89263903,1811.1,1811.0,4.806]
[1746015167853,12.53403626,1811.1,1811.0,4.806]
[1746015168856,10.89263903,1811.1,1811.0,4.806]
[1746015170854,10.09843903,1811.1,1811.0,4.806]
[1746015173153,10.86863903,1811.1,1811.0,4.806]
[1746015175462,5.52250296,1810.8,1809.5,1.89046352]
[1746015175664,5.52250296,1810.8,1809.9,4.756]
[1746015175665,2.49056352,1810.3,1809.9,4.756]
[1746015175966,9.28844308,1810.2,1809.9,4.756]
[1746015176260,9.59789716,1810.2,1809.9,4.756]
[1746015176460,7.11350535,1810.2,1809.9,4.756]
[1746015177635,7.11350535,1810.2,1809.8,0.8225]
[1746015177861,7.11350535,1810.2,1810.1,4.833]
[1746015179092,12.18982944,1810.2,1810.1,1e-08]
[1746015179391,13.88029296,1810.2,1810.1,1e-08]
[1746015179779,12.18982944,1810.2,1810.1,1e-08]
[1746015179981,10.88560535,1810.2,1810.1,1e-08]
[1746015182767,10.11350535,1810.2,1810.1,1e-08]
[1746015184195,9.59745529,1810.2,1810.1,1e-08]
[1746015185001,9.59745529,1810.2,1810.1,0.1068153]
[1746015188005,9.0818471,1810.2,1810.1,0.1068153]
[1746015188227,9.5952982,1810.2,1810.1,0.1068153]
[1746015189025,9.5952982,1810.2,1810.1,0.1068153]
[1746015198229,1.07104674,1810.2,1810.1,0.1068153]
[1746015198895,6.5952982,1810.2,1810.1,0.1068153]
[1746015201016,1.07104674,1810.2,1810.1,0.1068153]
[1746015201747,6.5952982,1810.2,1810.1,0.1068153]
[1746015202449,8.57086182,1810.2,1810.1,0.1068153]
[1746015203149,7.11052828,1810.2,1810.1,0.1068153]
[1746015204249,1.58627682,1810.2,1810.1,0.1068153]
[1746015204427,7.11052828,1810.2,1810.1,0.1068153]
[1746015205127,1.58627682,1810.2,1810.1,0.1068153]
[1746015206343,7.11052828,1810.2,1810.1,0.1068153]
[1746015206729,7.11052828,1810.2,1810.1,1e-08]
[1746015207051,7.11052828,1810.2,1810.1,0.11606212]
[1746015209268,1.58627682,1810.2,1810.1,5.64061877]
[1746015209563,1.58627682,1810.2,1810.1,0.11606212]
[1746015210344,1.58627682,1810.2,1810.1,0.92886212]
[1746015211347,1.58627682,1810.2,1810.1,0.11606212]
[1746015214137,1.58627682,1810.2,1810.1,7.02939174]
[1746015218314,1.58627682,1810.2,1810.1,7.57939174]
[1746015218515,1.07104674,1810.2,1810.1,7.57939174]
[1746015219219,0.55759564,1810.2,1810.1,7.57939174]
[1746015219716,0.24814156,1810.2,1810.1,7.57939174]
[1746015220096,11.84656931,1810.8,1810.4,5.5235942]
[1746015220302,0.54976008,1810.7,1810.5,0.11358979]
[1746015220502,0.23982893,1810.6,1810.5,0.11358979]
[1746015220707,1.27273689,1810.6,1810.5,0.11358979]
[1746015221104,1.58266804,1810.6,1810.5,0.11358979]
[1746015221504,1.53266804,1810.6,1810.4,5.52349033]
[1746015221702,0.75925487,1810.5,1810.4,6.62821262]
[1746015221900,1.27571822,1810.5,1810.4,6.62821262]
[1746015222226,1.58564937,1810.5,1810.4,7.39051262]
[1746015222431,1.58564937,1810.5,1810.4,7.94051262]
[1746015222594,1.58564937,1810.5,1810.4,1.10472229]
[1746015222794,1.58564937,1810.5,1810.4,6.62836347]
[1746015224933,1.06918602,1810.5,1810.4,6.62836347]
[1746015225097,1.06918602,1810.5,1810.4,7.42806347]
[1746015226525,1.06918602,1810.5,1810.4,7.97806347]
[1746015226901,0.75925487,1810.5,1810.4,7.97806347]
[1746015227231,0.24281026,1810.5,1810.4,7.97806347]
[1746015227700,3.0,1811.0,1810.7,6.31270046]
[1746015227901,0.23540778,1810.9,1810.7,6.31270046]
[1746015228212,0.82547049,1810.8,1810.7,6.31270046]
[1746015228429,1.06087827,1810.8,1810.7,6.86270046]
[1746015228600,0.54495697,1810.8,1810.7,6.86270046]
[1746015228802,0.54495697,1810.8,1810.7,8.27028973]
[1746015229416,0.23540778,1810.8,1810.7,8.27028973]
[1746015229739,8.52129587,1811.2,1810.8,11.04460522]
[1746015229909,0.55398954,1811.1,1810.8,11.04460522]
[1746015230232,0.24470618,1811.0,1810.9,5.52211607]
[1746015230399,0.75995524,1811.0,1810.9,5.52211607]
[1746015230598,1.0692386,1811.0,1810.9,5.52211607]
[1746015231501,1.06899173,1811.0,1810.9,5.52211607]
[1746015231724,1.06899173,1811.0,1810.8,5.52224739]
[1746015231924,0.75642452,1810.9,1810.7,5.52269015]
[1746015232132,0.24117546,1810.8,1810.7,5.52272601]
[1746015232336,0.24117546,1810.8,1810.7,7.4153842]
[1746015233540,0.24149468,1811.0,1810.7,12.93792318]
[1746015234041,0.30898859,1810.9,1810.7,12.93792318]
[1746015234246,0.23683619,1810.8,1810.7,7.96519717]
[1746015235646,5.52159565,1811.1,1810.8,5.5223093]
[1746015235957,1.0660563,1811.0,1810.8,5.5223093]
[1746015236138,0.2422603,1810.9,1810.8,5.5223093]
[1746015236336,0.2422603,1810.9,1810.8,7.42105995]
[1746015236526,0.8278,1811.3,1811.0,5.52166609]
[1746015236713,0.76306956,1811.2,1811.0,5.52166609]
[1746015236919,0.55711064,1811.1,1811.0,5.52166609]
[1746015237121,1.07199229,1811.1,1811.0,5.52166609]
[1746015237321,1.07199229,1811.1,1811.0,6.62604121]
[1746015238530,0.55711064,1811.1,1811.0,6.62604121]
[1746015240716,0.55711064,1811.1,1811.0,8.00384121]
[1746015241258,0.24818791,1811.1,1811.0,8.00384121]
[1746015241962,0.30884714,1811.4,1811.1,5.52139057]
[1746015242263,5.52173414,1811.1,1810.7,5.52267081]
[1746015242562,0.24639164,1811.0,1810.7,11.04507375]
[1746015242946,0.24639164,1811.0,1810.7,5.52252616]
[1746015243559,1.07199164,1811.0,1810.6,11.81040812]
[1746015243748,0.23771494,1810.9,1810.6,6.28755882]
[1746015243950,0.75276304,1810.9,1810.6,7.46863526]
[1746015244153,0.24406662,1810.8,1810.6,7.46863526]
[1746015244350,0.55309319,1810.8,1810.6,7.46863526]
[1746015244531,0.24406662,1810.7,1810.6,7.46863526]
[1746015245339,0.23454428,1810.7,1810.6,7.46863526]
[1746015245737,0.24168325,1810.7,1810.6,7.46863526]
[1746015246138,5.76380046,1810.9,1810.6,7.46863526]
[1746015246434,1.00998325,1810.8,1810.6,1.18107644]
[1746015246659,0.24168325,1810.7,1810.5,5.52313373]
[1746015247061,0.24168325,1810.7,1810.6,5.52303103]
[1746015249361,0.55129223,1810.7,1810.6,5.52303103]
[1746015250852,1.0674294,1810.7,1810.6,5.52303103]
[1746015253446,1.06764497,1810.7,1810.6,5.52303103]
[1746015253752,1.06764497,1810.7,1810.6,6.70428751]
[1746015255380,1.06764497,1810.7,1810.6,7.25428751]
[1746015255563,1.06764497,1810.7,1810.6,8.94475103]
[1746015255758,0.75782042,1810.7,1810.6,8.94475103]
[1746015256165,0.24168325,1810.7,1810.6,8.94475103]
[1746015256683,6.35173037,1811.0,1810.7,5.52267395]
[1746015256890,0.24012011,1810.9,1810.7,5.52267395]
[1746015257050,0.5165992,1810.8,1810.7,5.52267395]
[1746015257250,0.75671931,1810.8,1810.7,6.8003701]
[1746015257451,1.06669501,1810.8,1810.7,6.8003701]
[1746015260366,1.06669501,1810.8,1810.7,1.27769615]
[1746015260684,1.06669501,1810.8,1810.7,5.52272601]
[1746015265588,1.06669501,1810.8,1810.7,5.53591581]
[1746015265798,1.06669501,1810.8,1810.7,6.88341581]
[1746015266000,0.55009581,1810.8,1810.7,6.87022601]
[1746015266559,0.24012011,1810.8,1810.7,6.87022601]
[1746015266874,0.24012011,1810.8,1810.7,8.12271359]
[1746015267396,6.9412,1811.3,1811.0,5.52179334]
[1746015267557,0.24692366,1811.2,1811.0,5.52179334]
[1746015267754,0.51667803,1811.1,1811.0,5.52179334]
[1746015267961,1.28168191,1811.1,1811.0,6.87789334]
[1746015268160,1.28168191,1811.1,1811.0,8.11788105]
[1746015268394,1.59167819,1811.1,1811.0,8.11788105]
[1746015269094,1.07498888,1811.1,1811.0,8.11788105]
[1746015270997,0.7649926,1811.1,1811.0,8.11788105]
[1746015271182,0.24831457,1811.1,1811.0,8.11788105]
[1746015271383,0.30969161,1811.4,1811.3,5.52089659]
[1746015271561,0.55233662,1811.4,1811.3,5.52089659]
[1746015271777,0.55233662,1811.4,1811.3,6.62510181]
[1746015272478,0.24264501,1811.4,1811.3,6.62510181]
[1746015273616,0.24264501,1811.4,1811.3,7.17510181]
[1746015275304,0.24264501,1811.4,1811.3,1.10420522]
[1746015275514,0.24264501,1811.4,1811.3,5.52089659]
[1746015278417,1.00894501,1811.4,1811.1,6.07140237]
[1746015278618,0.24670368,1811.3,1811.1,0.55]
[1746015278793,0.24670368,1811.3,1811.1,6.07129909]
[1746015279181,0.24670368,1811.3,1811.1,0.55]
[1746015282824,3.24670368,1811.3,1811.1,0.55]
[1746015282987,0.24293287,1811.2,1811.1,0.55]
[1746015285438,0.25022508,1811.2,1811.0,0.55]
[1746015286405,0.25022508,1811.2,1811.0,6.07179688]
[1746015286838,0.2342322,1811.1,1811.0,9.13023489]
[1746015287407,0.2342322,1811.3,1811.0,9.13023489]
[1746015289940,0.2342322,1811.3,1811.0,6.07160425]
[1746015293249,0.2342322,1811.3,1811.0,11.59322362]
[1746015293411,0.2342322,1811.3,1811.0,6.07160425]
[1746015294810,0.2342322,1811.3,1811.1,5.5214775]
[1746015295239,0.2342322,1811.3,1811.0,6.07160425]
[1746015295448,0.2342322,1811.3,1811.0,6.75552468]
[1746015296349,0.2342322,1811.3,1811.0,6.07160425]
[1746015296645,0.2342322,1811.3,1811.0,11.59321853]
[1746015296949,0.2342322,1811.3,1811.1,5.52146001]
[1746015297654,0.30998677,1811.2,1811.1,5.52146001]
[1746015297855,0.55768113,1811.2,1811.1,5.52146001]
[1746015298062,0.55768113,1811.2,1811.0,6.07159126]
[1746015300720,0.24357276,1811.5,1811.2,6.07120141]
[1746015300955,0.3100099,1811.4,1811.2,6.07120141]
[1746015301250,0.8027,1811.2,1810.6,0.7614]
[1746015301453,1.11853998,1811.1,1810.4,0.7614]
[1746015301752,5.52226497,1810.9,1810.5,5.52331818]
[1746015301954,0.24882258,1810.8,1810.5,6.70393611]
[1746015302249,0.24882258,1810.8,1810.6,0.55]
[1746015302456,0.24882258,1810.7,1810.6,6.07274569]
[1746015302967,0.23874761,1810.7,1810.6,0.55]
[1746015303165,0.23874761,1810.7,1810.6,1.27540273]
[1746015303365,0.23874761,1810.7,1810.5,1.18080828]
[1746015304964,6.58864675,1810.7,1810.5,1.18080828]
[1746015305149,5.5231299,1810.6,1810.4,0.55]
[1746015305504,0.24958812,1810.5,1810.4,0.55]
[1746015305961,0.25052573,1810.5,1810.4,0.55]
[1746015306262,0.25052573,1810.6,1810.4,0.55]
[1746015306562,0.25052573,1810.6,1810.5,6.08654478]
[1746015306863,0.23874268,1810.6,1810.5,0.55]
[1746015307156,5.76126972,1810.8,1810.5,0.55]
[1746015307322,0.23874268,1810.7,1810.5,0.55]
[1746015307520,6.52397145,1810.7,1810.4,2.42987671]
[1746015307748,5.76188357,1810.6,1810.4,0.55]
[1746015307959,5.76855888,1810.5,1810.3,18.225]
[1746015308149,0.24503176,1810.4,1810.3,18.225]
[1746015309459,0.24483163,1810.4,1810.3,18.225]
[1746015309655,0.24483163,1810.4,1810.3,24.29879253]
[1746015309879,3.7623,1810.7,1810.4,0.55]
[1746015310086,0.24839038,1810.6,1810.4,0.55]
[1746015310675,0.24839038,1810.6,1810.4,6.07352176]
[1746015311302,0.24839038,1810.6,1810.5,0.10405832]
[1746015313088,0.24839038,1810.6,1810.5,5.62739441]
[1746015313289,0.24839038,1810.6,1810.5,6.79747457]
[1746015315291,0.24839038,1810.6,1810.5,7.34747457]
[1746015315530,0.7695,1810.9,1810.7,5.52272601]
[1746015315795,0.7695,1810.9,1810.3,21.28986988]
[1746015315796,0.7695,1810.6,1810.3,26.81371107]
[1746015316001,0.23658503,1810.5,1810.3,26.81358276]
[1746015316147,0.7695,1810.8,1810.5,5.52318651]
[1746015316579,0.23658503,1810.7,1810.5,5.52318651]
[1746015317391,0.23658503,1810.7,1810.5,5.52317288]
[1746015317552,0.23658503,1810.7,1810.6,5.52303103]
[1746015317756,0.23658503,1810.7,1810.5,5.52322571]
[1746015318387,0.23658503,1810.7,1810.4,27.8169291]
[1746015318586,0.23658503,1810.7,1810.5,5.52333541]
[1746015318761,0.23658503,1810.7,1810.6,6.07303103]
[1746015319176,0.24979289,1810.7,1810.6,6.07303103]
[1746015319359,6.3037152,1811.0,1810.6,6.07303103]
[1746015319688,0.24979289,1810.9,1810.7,5.52260216]
[1746015320089,0.24979289,1810.9,1810.8,5.52242102]
[1746015320256,0.24979289,1810.9,1810.8,6.62692334]
[1746015320451,0.24979289,1810.9,1810.8,7.17692334]
[1746015321309,3.0,1811.2,1810.9,6.0719768]
[1746015321500,0.24201624,1811.1,1810.9,6.0719768]
[1746015321703,0.55138573,1811.1,1810.9,6.07194319]
[1746015321903,0.30936949,1811.1,1810.9,12.31151562]
[1746015322109,0.30936949,1811.1,1810.9,6.7895767]
[1746015322623,0.30936949,1811.1,1811.0,5.52181115]
[1746015322815,3.0,1811.2,1811.0,5.52181115]
[1746015323017,0.8202,1811.3,1811.0,5.52181115]
[1746015323197,9.34115077,1811.3,1811.0,5.52181115]
[1746015323395,0.8202,1811.3,1811.1,5.52143961]
[1746015323717,0.82483025,1811.2,1811.1,5.52143961]
[1746015323923,0.82483025,1811.2,1811.0,5.52181115]
[1746015324122,0.30931165,1811.2,1811.0,6.75295277]
[1746015324488,0.30931165,1811.2,1811.0,6.75277117]
[1746015324711,0.8202,1811.3,1811.0,6.75277117]
[1746015324890,0.8202,1811.3,1811.0,5.52162955]
[1746015325086,6.3411087,1811.3,1811.0,5.52162955]
[1746015325815,6.3411087,1811.3,1811.1,0.10511633]
[1746015326020,0.30938922,1811.2,1811.1,0.10511633]
[1746015328106,0.82509486,1811.2,1811.1,0.10511633]
[1746015331109,0.30938922,1811.2,1811.1,0.10511633]
[1746015331329,0.30938922,1811.2,1811.1,5.62662259]
[1746015332032,0.30938922,1811.2,1811.1,9.19498236]
[1746015332237,3.0,1811.5,1811.2,5.52110192]
[1746015332620,0.51572236,1811.4,1811.2,5.52110192]
[1746015332799,8.52034488,1811.5,1811.3,0.10511633]
[1746015333135,0.30937508,1811.4,1811.3,5.52078642]
[1746015333434,0.30937508,1811.4,1811.2,5.52108523]
[1746015333812,0.30937508,1811.4,1811.3,5.52089659]
[1746015334012,0.30937508,1811.4,1811.2,11.04211972]
[1746015334212,3.0,1811.5,1811.2,5.52103449]
[1746015334427,3.0,1811.5,1811.2,11.04203689]
[1746015334628,3.0,1811.5,1811.2,5.5210024]
[1746015334838,6.52312752,1811.5,1811.0,24.55693768]
[1746015335019,6.83764378,1811.4,1811.1,5.52147124]